Cogmind - Beta 14 @@@ ROGUE MODE // 2024.11.01 @ 17:59:57 Player: OG DANIEL Result: Destroyed by G-34 Mercenary with Small Laser Performance ------------- Evolutions (1) 500 Regions Visited (2) 400 Robots Destroyed (13) 65 Value Destroyed (422) 422 Prototype IDs (1) 20 Alien Tech Used (0) 0 Bonus (0) 0 TOTAL SCORE: 1407 Bonus ------- None Cogmind --------- Core Integrity 0/400 Matter 228/300 Energy 100/100 System Corruption 0% Temperature Cool (6) Movement Core (100) Ox1 Location -9/Materials Parts ------- > --- POWER (1) -------- (None) > --- PROPULSION (2) --- (None) > --- UTILITY (4) ------ Small Storage Unit > --- WEAPON (2) ------- (None) > --- INVENTORY (8) ---- Light Ion Engine Heavy Ion Engine Compact Wheel Peak State ------------ > --- POWER ------------ Heavy Ion Engine > --- PROPULSION ------- Aluminum Leg Improved Aluminum Leg > --- UTILITY ---------- Small Storage Unit Improved Terrain Scanner Light Armor Plating > --- WEAPON ----------- Assault Rifle Light Assault Rifle > --- INVENTORY -------- Light Ion Engine Light Ion Engine Aluminum Leg Compact Wheel Compact Wheel [Rating: 13] Favorites ----------- Power Heavy Ion Engine Engine Heavy Ion Engine Propulsion Light Treads Treads Light Treads Leg Aluminum Leg Wheel Compact Wheel Utility Small Storage Unit Device Improved Terrain Scanner Storage Small Storage Unit Protection Light Armor Plating Weapon Assault Rifle Energy Gun Small Laser Ballistic Gun Assault Rifle Build | -11 -10 -9 ------- Run | Yrd Mat Mat Slots Evolved 2 | . . 2 Power . | . . . Propulsion . | . . . Utility 2 | . . 2 Weapon . | . . . Parts Attached 19 | 6 2 11 Power 3 | . 1 2 Engine 3 | . 1 2 Core . | . . . Reactor . | . . . Propulsion 7 | 2 . 5 Treads 2 | 2 . . Leg 4 | . . 4 Wheel 1 | . . 1 Hover . | . . . Flight . | . . . Utility 3 | 1 1 1 Device 1 | . 1 . Storage 1 | 1 . . Processor . | . . . Hackware . | . . . Protection 1 | . . 1 Artifact . | . . . Weapon 6 | 3 . 3 Energy Gun 1 | . . 1 Energy Cannon . | . . . Ballistic Gun 5 | 3 . 2 Ballistic Cannon . | . . . Launcher . | . . . Special Weapon . | . . . Impact Weapon . | . . . Slashing Weapon . | . . . Piercing Weapon . | . . . Special Melee Weapon . | . . . Unidentified Prototypes 1 | . . 1 Parts Lost 13 | . . 13 Power 1 | . . 1 Propulsion 5 | . . 5 Utility 2 | . . 2 Weapon 5 | . . 5 Highest Loss Streak 8 | . . 8 To Critical Strikes . | . . . Average Slot Usage (%) 77 | . 79 75 Engine 7 | . 4 10 Treads 18 | . 28 9 Leg 5 | . . 9 Device 6 | . 3 9 Storage 12 | . 14 11 Protection 2 | . . 4 Ballistic Gun 23 | . 28 19 Peak Build Rating 13 | 5 9 13 Average Rating 8 | 4 6 10 On Entrance 4 | . 5 9 Naked Turns . | . . . Heaviest Build 20 | 9 13 20 Greatest Support 40 | 40 40 40 Greatest Overweight (x) 2 | . . 2 Average Overweight (x) . | . . . Largest Inventory Capacity 8 | 8 8 8 Average Capacity 7 | 6 8 8 Most Carried 7 | 7 7 7 Average Carried 5 | 4 6 5 Final Capacity 8 | 8 8 8 Final Carried 7 | 7 6 3 Class Distribution -------------------- 100% | Mutant Dominant Class ---------------- Mutant | -10/Materials Mutant | -9/Materials Resources | -11 -10 -9 ----------- Run | Yrd Mat Mat Matter Collected 509 | 196 175 138 Remotely . | . . . Salvage Created 546 | . 162 384 Parts 32 | . 12 20 Haulers Intercepted . | . . . Recyclers Shooed . | . . . Parts Field Recycled . | . . . Retrieved Matter . | . . . Parts Self-Destructed . | . . . Prevented . | . . . Kills | -11 -10 -9 ------- Run | Yrd Mat Mat Combat Hostiles Destroyed 11 | . 4 7 Guns 11 | . 4 7 Classes Destroyed 4 | . 2 2 Tunneler 1 | . 1 . Recycler 1 | . . 1 Grunt 9 | . 4 5 Sentry 2 | . . 2 Best Kill Streak 4 | . 4 4 Combat Bots Only 3 | . 3 3 Max Kills in Single Turn 1 | . 1 1 Gunslinging . | . . . Exploded . | . . . Melee . | . . . Uniques/NPCs Destroyed . | . . . Combat | -11 -10 -9 -------- Run | Yrd Mat Mat Hostile Shots Fired 200 | . 38 162 Missed 59 | . 9 50 Damage Taken 1857 | . 315 1542 Core 446 | . 44 402 Absorbed by Shields . | . . . Core Remaining (%) 91 | 100 82 . Volleys Fired 74 | . 16 58 Largest 2 | . 2 2 Hottest 60 | . 40 60 Shots Fired 126 | . 31 95 Gun 126 | . 31 95 Cannon . | . . . Launcher . | . . . Special . | . . . Kinetic 121 | . 31 90 Thermal 5 | . . 5 Explosive . | . . . Electromagnetic . | . . . Robot Hit Streak 9 | . 5 9 Robot Miss Streak 3 | . 2 3 Penetration Max . | . . . Secondary Targets . | . . . Shots Hit Robots 82 | . 18 64 Core Hits 25 | . 7 18 Critical Kills 1 | . . 1 Critical Parts Destroyed 2 | . . 2 Critical Strikes 3 | . . 3 Destroy 3 | . . 3 Melee Attacks . | . . . Impact . | . . . Slashing . | . . . Piercing . | . . . Sneak Attacks . | . . . Combat Hostiles . | . . . Follow-up Attacks . | . . . Damage Inflicted 921 | . 237 684 Guns 915 | . 235 680 Cannons . | . . . Explosions . | . . . Melee . | . . . Ramming 6 | . 2 4 Kinetic 904 | . 235 669 Thermal 11 | . . 11 Explosive . | . . . Electromagnetic . | . . . Impact . | . . . Slashing . | . . . Piercing . | . . . Highest Corruption . | . . . Average Corruption . | . . . Corruption Purged . | . . . Corruption Blocked . | . . . Overload Shots . | . . . Overflow Damage . | . . . Projectiles . | . . . Explosions . | . . . Melee . | . . . Knockbacks . | . . . Impact . | . . . Kinetic . | . . . Secondary . | . . . Self-Inflicted Damage . | . . . Shots . | . . . Rammed 1 | . 1 . Targets Rammed 2 | . 1 1 Kicked 1 | . . 1 Crushed . | . . . Highest Temperature 56 | . . 56 Average Temperature 11 | . . 11 Received Heat Transfer 915 | . 174 741 Siege Activations . | . . . Robots Corrupted . | . . . Combat Hostiles . | . . . Parts Fried . | . . . Impact Corruptions . | . . . Robots Melted . | . . . Combat Hostiles . | . . . Parts Melted . | . . . Heat Transferred 25 | . . 25 Parts Sabotaged . | . . . Parts Stolen . | . . . Parts Stripped . | . . . Power Chain Reactions . | . . . Alert | -11 -10 -9 ------- Run | Yrd Mat Mat Peak Influence 198 | . 151 198 Initial 63 | . . 63 Average 73 | . 64 96 Maximum Alert Level . | . . . Low Security (%) 100 | 100 100 100 Level 1 . | . . . Level 2 . | . . . Level 3 . | . . . Level 4 . | . . . Level 5 . | . . . High Security . | . . . Max Security . | . . . Squads Dispatched 4 | . 2 2 Investigation 1 | . 1 . Extermination . | . . . Reinforcement 3 | . 1 2 Assault . | . . . Garrison . | . . . Intercept . | . . . Searches Triggered . | . . . Construction Impeded 1 | . . 1 Haulers Reinforced . | . . . Active Scanning Responses . | . . . Cargo Convoy Interrupts . | . . . Stealth | -11 -10 -9 --------- Run | Yrd Mat Mat Distress Signals 1 | . . 1 Communications Jammed . | . . . Distress Signals . | . . . Times Spotted 24 | . 10 14 Peak Tracking Total 10 | . 4 10 Tactical Retreats 1 | . . 1 Traps | -11 -10 -9 ------- Run | Yrd Mat Mat Traps Triggered 1 | . 1 . Indirectly . | . . . Trap Hack Attempts . | . . . Triggered . | . . . Disarmed . | . . . Reprogrammed . | . . . Reused . | . . . Traps Extracted . | . . . Installed . | . . . Triggered . | . . . Machines | -11 -10 -9 ---------- Run | Yrd Mat Mat Machines Disabled . | . . . Max in Single Turn . | . . . Machines Repaired . | . . . Machines Dismantled . | . . . Machines Sabotaged . | . . . Overloaded Fab Kills . | . . . Hacking | -11 -10 -9 --------- Run | Yrd Mat Mat Machines Accessed 1 | . . 1 Terminals . | . . . Fabricators . | . . . Repair Stations . | . . . Recycling Units . | . . . Scanalyzers 1 | . . 1 Garrison Access . | . . . Total Hacks 1 | . . 1 Successful . | . . . Failed 1 | . . 1 Catastrophic . | . . . Database Lockouts . | . . . Manual . | . . . Terminals . | . . . Fabricators . | . . . Repair Stations . | . . . Recycling Units . | . . . Scanalyzers 1 | . . 1 Garrison Access . | . . . Terminal Hacks . | . . . Fabricator Hacks . | . . . Repair Station Hacks . | . . . Recycling Unit Hacks . | . . . Scanalyzer . | . . . Garrison Access Hacks . | . . . Unauthorized Hacks . | . . . Terminals . | . . . Fabricators . | . . . Repair Stations . | . . . Recycling Units . | . . . Scanalyzers . | . . . Garrison Access . | . . . Data Cores Recovered . | . . . Used . | . . . Hacking Detections 1 | . . 1 Full Trace Events . | . . . Feedback Events . | . . . Feedback Blocked . | . . . Robot Schematics Acquired . | . . . Robots Built . | . . . Authchips . | . . . Time . | . . . Total Robot Build Rating . | . . . Part Schematics Acquired . | . . . Parts Built . | . . . Authchips . | . . . Time . | . . . Total Part Build Rating . | . . . Parts Repaired . | . . . Time . | . . . Parts Recycled . | . . . Recycled Matter . | . . . Retrieved Matter . | . . . Retrieved Components . | . . . Parts Scanalyzed . | . . . Part Schematics Acquired . | . . . Parts Damaged . | . . . Bothacking | -11 -10 -9 ------------ Run | Yrd Mat Mat Used RIF Installer . | . . . Robots Hacked . | . . . Non-combat . | . . . Combat . | . . . Robot Hacks Applied . | . . . Relay Couplers Released . | . . . Fabnet Peak Effective % . | . . . Robots Rewired . | . . . Allies Hacked . | . . . Hacks Repelled . | . . . Allies | -11 -10 -9 -------- Run | Yrd Mat Mat Total Allies . | . . . Largest Group . | . . . Highest-Rated Group . | . . . Highest-Rated Ally . | . . . Total Orders . | . . . Ally Attacks . | . . . Total Damage . | . . . Kills . | . . . Allies Corrupted . | . . . Allies Melted . | . . . Intel | -11 -10 -9 ------- Run | Yrd Mat Mat Robot Analysis Total . | . . . Derelict Logs Recovered . | . . . Drone Launches . | . . . Drone Recoveries . | . . . Exploration | -11 -10 -9 ------------- Run | Yrd Mat Mat Turns Passed 926 | 94 381 451 Spaces Moved 431 | 53 196 182 Core 9 | 4 . 5 Treads 336 | 49 196 91 Legs 83 | . . 83 Wheels 3 | . . 3 Hover . | . . . Flight . | . . . Fastest Speed 50 | 50 160 100 Average Speed 151 | 151 160 141 Slowest Speed 190 | 160 160 190 Overloaded Moves . | . . . Propulsion Burnouts . | . . . Robots Hopped . | . . . Cave-ins Triggered . | . . . Exploration Rate (%) 22 | 4 39 25 Regions Visited 2 Branch Regions . Pre-discovered Areas . | . . . Known Exits Taken . | . . . Unknown Exits Taken 2 | 1 1 . Scrap Searched . | . . . Spaces Dug . | . . . Terrain Destroyed . | . . . Melee . | . . . Projectile . | . . . AOE . | . . . Terrain Rammed . | . . . Walls Destroyed . | . . . Machines Disabled . | . . . Actions | -11 -10 -9 --------- Run | Yrd Mat Mat Total 584 | 64 232 288 Wait 51 | . 17 34 Move 429 | 52 195 182 Hop . | . . . Pick Up 8 | 6 1 1 Fast Attach 8 | 5 . 3 Attach 7 | . 2 5 Detach . | . . . Swap 4 | 1 . 3 Drop 1 | . . 1 Fire 74 | . 16 58 Melee . | . . . Ram . | . . . Kick 1 | . . 1 Crush 1 | . 1 . Escape Stasis . | . . . Rewire . | . . . Trap . | . . . Miscellaneous . | . . . Route ------- -11/Scrapyard -10/Materials (discovered 3 exits: *Mat / [*Min x2]) -9/Materials History --------- Turn | Location | Event 17 | -11/Scrapyard | Discovered new exit (range 16) 95 | -11/Scrapyard | Entered Materials 260 | -10/Materials | Discovered new exit (range 11) 274 | -10/Materials | Discovered new exit (range 16) 305 | -10/Materials | Build established: Mutant 417 | -10/Materials | Discovered new exit (range 16) 476 | -10/Materials | Entered another Materials area 476 | -9/Materials | Evolved 2 slots: Utility x2 858 | -9/Materials | Core integrity fell below 50% 865 | -9/Materials | Lost 3 parts (1u2w) 908 | -9/Materials | Core integrity fell below 20% 927 | -9/Materials | Destroyed by G-34 Mercenary with Small Laser Last Messages --------------- 00872_ K-01 Serf cleans the Fusion Modulator. 00873_ G-34 Mercenary suffers critical hit (Destroy). 00873_ G-34 Mercenary destroyed. 00873_ R-06 Scavenger collects Sml. Laser. 00887_ Imp. Aluminum Leg destroyed. 00889_ G-34 Mercenary destroyed. 00897_ R-06 Scavenger collects Aluminum Leg. 00897_ Acquired Sml. Laser. 00897_ Critical hit (Burn: +37). 00898_ K-01 Serf collects debris. 00903_ Material Processor disabled. 00905_ Lgt. Ion Engine destroyed. 00906_ K-01 Serf collects debris. 00909_ R-06 Scavenger destroyed. 00909_ Com. Wheel destroyed. 00922_ Aluminum Leg destroyed. 00922_ K-01 Serf collects debris. 00926_ Sml. Laser destroyed. 00926_ Lgt. Assault Rifle destroyed. Map ----- +----------------------------------------------------+ | | | | | | | | | ?????????????????????????????????????????????????? | | ?????????????????????????????????????????????????? | | ?????????????????????????????????????????????????? | | ?????????????????????????????????????????????????? | | ?????????????????????????????????????????????????? | | ?????????????????????????????????????????????????? | | ?????????????????????????????????????????????????? | | ?????????????????????????????????????????????????? | | ?????????????????????????????????????????????????? | | ?????????????????????????????????????????????????? | | ?????????????????????????????????????????????????? | | ?????????????????????????????????????????????????? | | ?????????????????????????????????????????????????? | | ???????????????????????????#?????????????????????? | | ????????????????????????????????#????????????????? | | ?????????????????????????????????????????????????? | | ????????????????????#########????????????????????? | | ???????????????????? """ #???#????????????????? | | ??????????????????# """"" #????????????????????? | | ??????????????????# """" #????????????????????? | | ?????????????? ???# """" #?#??????????????????? | | ??????????????????# "" @ #????????????????????? | | ??????????????????# g #????????????????????? | | ?????????? ???????+ kg #????????????????????? | | ??????????? ???#!% g *%#?????#??????????????? | | ?????????? ##+######Y#????????????????????? | | ?????????? = #????????????????????? | | ?????????? #????????????????????? | | ?????????? """ """ #?????#????#?????????? | | ????????????# ? """ """ #?? ????? #??????????? | | ????????????# """ """ %#???? #??????????? | | ????????????# # ##??????#??? | | ????????????# %+ !!! #??????????? | | ????????????# ######## # !!! + ?????????? | | ????????????????????????## ## !!! #??????????? | | ?????????????????????????# #?? #??????????? | | ????????????????????#????# #? ???????#???? | | ?????????????????????????# ##??####+######## ##### | | ??????????????????"??#???# #??????# | | ????????????????"??????### ###????# | | ???????????????????????# ######+## | | ????????????????????#### # / | | ????????????????????+ T / # #####+###?? | | ????????????????????#### # # #?? ??????? | | ???????????????????????# ######### #?????????? | | ???????????????????????### ### # #???????? ? | +----------------------------------------------------+ Best States ------------- Heat Dissipation 28 Energy Generation 10 Energy Capacity 280 Matter Stores 300 Matter Capacity 300 Sight Range 16 Terrain Scan Range 16 Terrain Scan Density 10 Armor Coverage 150 Evasion (%) 55 Recoil Reduction 2 Item Schematics ----------------- None Robot Schematics ------------------ None Fabricated ------------ Nothing Alien Tech Used ----------------- None Achievements -------------- None Challenges ------------ None Game ------ Seed CentriumLauncherAutogun Manual? 0 Play Time 00:08:33 Cumulative 5.1 hours Start 2024.11.01 @ 17:51:56 End 2024.11.01 @ 17:59:57 Sessions 1 Manual Loads 0 Difficulty Rogue Special Mode None Game No. 25 Rogue 25 Adventurer 0 Explorer 0 Win Type - Total 0 Types 0/0/0/0/0/0/0/0/0 Lore% 4 Gallery% 11 Achievement% 8 Wizard Run 0 Options --------- Layout 1 ASCII 0 Keyboard 0 Movement Numpad Keybinds 0 Fullscreen 0 Font 20/SmallcapsGlow Map View 50x35 Zoom Use 0% Tactical HUD 1 Map Filters NONE Filters NONE Steam 1 RUN: b9db9b3f-a44c-49f6-ae0d-eca0617e78a8